{"text_format":"1","workbook":"xlsx","n_sheets":2,"sheets":["Организации|Клиенты","Лист2"],"not_rendered":{"charts":0,"images":0,"macros":1,"external_links":0,"defined_names":4,"comments":0,"pivot_tables":0},"unopened":[],"bounds":{"document_bytes":16777216,"sheet_cells":100000,"rows_first":2000,"rows_last":500,"rows_between":2000,"halvings":0,"cell_chars":16384,"cell_head_chars":4096},"cells_cut":0,"cells_raw":0,"read":"whole","date_system":"1900"}

{"sheet":"Организации|Клиенты","index":0,"n_rows":57,"n_cols":10,"rows_kept":57,"cut":false,"hidden":false,"merged":[]}
["Организация ","ФИО","Телефон","Почта","Организации",null,"=орг","=фио"]
["организация1","ФИО_1.1","телефон_1.1","почта_1.1",{"$f":"IFERROR(INDEX([[Организация ]],MATCH( 0,IF(ISBLANK([[Организация ]]),\"\",COUNTIF(INDIRECT(ADDRESS(1,COLUMN(),1)&\":\"&ADDRESS(ROW()-1,COLUMN(),1)),[[Организация ]])),0)),\"\")","v":"организация1"},null,"организация3","ФИО_3.3",{"$f":"Тел","v":"телефон_3.3"},{"$f":"Почта","v":"почта_3.3"}]
["организация1","ФИО_1.2","телефон_1.2","почта_1.2",{"$f":"IFERROR(INDEX([[Организация ]],MATCH( 0,IF(ISBLANK([[Организация ]]),\"\",COUNTIF(INDIRECT(ADDRESS(1,COLUMN(),1)&\":\"&ADDRESS(ROW()-1,COLUMN(),1)),[[Организация ]])),0)),\"\")","v":"организация2"}]
["организация1","ФИО_1.3","телефон_1.3","почта_1.3",{"$f":"IFERROR(INDEX([[Организация ]],MATCH( 0,IF(ISBLANK([[Организация ]]),\"\",COUNTIF(INDIRECT(ADDRESS(1,COLUMN(),1)&\":\"&ADDRESS(ROW()-1,COLUMN(),1)),[[Организация ]])),0)),\"\")","v":"организация3"}]
["организация1","ФИО_1.4","телефон_1.4","почта_1.4",{"$f":"IFERROR(INDEX([[Организация ]],MATCH( 0,IF(ISBLANK([[Организация ]]),\"\",COUNTIF(INDIRECT(ADDRESS(1,COLUMN(),1)&\":\"&ADDRESS(ROW()-1,COLUMN(),1)),[[Организация ]])),0)),\"\")","v":"организация4"},null,"Список имен"]
["организация1","ФИО_1.5","телефон_1.5","почта_1.5",{"$f":"IFERROR(INDEX([[Организация ]],MATCH( 0,IF(ISBLANK([[Организация ]]),\"\",COUNTIF(INDIRECT(ADDRESS(1,COLUMN(),1)&\":\"&ADDRESS(ROW()-1,COLUMN(),1)),[[Организация ]])),0)),\"\")","v":"организация5"},null,"Орг","=СМЕЩ(ИНДЕКС(ДВССЫЛ(\"Клиенты[Организации]\");1);;;СЧЁТЗ(ДВССЫЛ(\"Клиенты[Организации]\"))-СЧИТАТЬПУСТОТЫ(ДВССЫЛ(\"Клиенты[Организации]\")))"]
["организация1","ФИО_1.6","телефон_1.6","почта_1.6",{"$f":"IFERROR(INDEX([[Организация ]],MATCH( 0,IF(ISBLANK([[Организация ]]),\"\",COUNTIF(INDIRECT(ADDRESS(1,COLUMN(),1)&\":\"&ADDRESS(ROW()-1,COLUMN(),1)),[[Организация ]])),0)),\"\")","v":"организация6"},null,"ФИО","=ДВССЫЛ(\"'Организации|Клиенты'!R\"&ПОИСКПОЗ(ДВССЫЛ(\"rc[-1]\";0);ДВССЫЛ(\"Клиенты[Организация ]\");0)+1&\"C2:R\"&ПОИСКПОЗ(ДВССЫЛ(\"rc[-1]\";0);ДВССЫЛ(\"Клиенты[Организация ]\"))+1&\"C2\";0)"]
["организация2","ФИО_2.1","телефон_2.1","почта_2.1",{"$f":"IFERROR(INDEX([[Организация ]],MATCH( 0,IF(ISBLANK([[Организация ]]),\"\",COUNTIF(INDIRECT(ADDRESS(1,COLUMN(),1)&\":\"&ADDRESS(ROW()-1,COLUMN(),1)),[[Организация ]])),0)),\"\")","v":"организация7"},null,"Тел","=ВПР(ДВССЫЛ(\"rc[-1]\";0);ДВССЫЛ(\"'Организации|Клиенты'!R\"&ПОИСКПОЗ(ДВССЫЛ(\"rc[-2]\";0);ДВССЫЛ(\"Клиенты[Организация ]\");0)+1&\"C2:R\"&ПОИСКПОЗ(ДВССЫЛ(\"rc[-2]\";0);ДВССЫЛ(\"Клиенты[Организация ]\"))+1&\"C4\";0);2;0)"]
["организация2","ФИО_2.2","телефон_2.2","почта_2.2",{"$f":"IFERROR(INDEX([[Организация ]],MATCH( 0,IF(ISBLANK([[Организация ]]),\"\",COUNTIF(INDIRECT(ADDRESS(1,COLUMN(),1)&\":\"&ADDRESS(ROW()-1,COLUMN(),1)),[[Организация ]])),0)),\"\")","v":"организация8"},null,"Почта","=ВПР(ДВССЫЛ(\"rc[-2]\";0);ДВССЫЛ(\"'Организации|Клиенты'!R\"&ПОИСКПОЗ(ДВССЫЛ(\"rc[-3]\";0);ДВССЫЛ(\"Клиенты[Организация ]\");0)+1&\"C2:R\"&ПОИСКПОЗ(ДВССЫЛ(\"rc[-3]\";0);ДВССЫЛ(\"Клиенты[Организация ]\"))+1&\"C4\";0);3;0)"]
["организация2","ФИО_2.3","телефон_2.3","почта_2.3",{"$f":"IFERROR(INDEX([[Организация ]],MATCH( 0,IF(ISBLANK([[Организация ]]),\"\",COUNTIF(INDIRECT(ADDRESS(1,COLUMN(),1)&\":\"&ADDRESS(ROW()-1,COLUMN(),1)),[[Организация ]])),0)),\"\")","v":"организация9"}]
["организация2","ФИО_2.4","телефон_2.4","почта_2.4",{"$f":"IFERROR(INDEX([[Организация ]],MATCH( 0,IF(ISBLANK([[Организация ]]),\"\",COUNTIF(INDIRECT(ADDRESS(1,COLUMN(),1)&\":\"&ADDRESS(ROW()-1,COLUMN(),1)),[[Организация ]])),0)),\"\")","v":""}]
["организация2","ФИО_2.5","телефон_2.5","почта_2.5",{"$f":"IFERROR(INDEX([[Организация ]],MATCH( 0,IF(ISBLANK([[Организация ]]),\"\",COUNTIF(INDIRECT(ADDRESS(1,COLUMN(),1)&\":\"&ADDRESS(ROW()-1,COLUMN(),1)),[[Организация ]])),0)),\"\")","v":""}]
["организация2","ФИО_2.6","телефон_2.6","почта_2.6",{"$f":"IFERROR(INDEX([[Организация ]],MATCH( 0,IF(ISBLANK([[Организация ]]),\"\",COUNTIF(INDIRECT(ADDRESS(1,COLUMN(),1)&\":\"&ADDRESS(ROW()-1,COLUMN(),1)),[[Организация ]])),0)),\"\")","v":""}]
["организация3","ФИО_3.1","телефон_3.1","почта_3.1",{"$f":"IFERROR(INDEX([[Организация ]],MATCH( 0,IF(ISBLANK([[Организация ]]),\"\",COUNTIF(INDIRECT(ADDRESS(1,COLUMN(),1)&\":\"&ADDRESS(ROW()-1,COLUMN(),1)),[[Организация ]])),0)),\"\")","v":""}]
["организация3","ФИО_3.2","телефон_3.2","почта_3.2",{"$f":"IFERROR(INDEX([[Организация ]],MATCH( 0,IF(ISBLANK([[Организация ]]),\"\",COUNTIF(INDIRECT(ADDRESS(1,COLUMN(),1)&\":\"&ADDRESS(ROW()-1,COLUMN(),1)),[[Организация ]])),0)),\"\")","v":""}]
["организация3","ФИО_3.3","телефон_3.3","почта_3.3",{"$f":"IFERROR(INDEX([[Организация ]],MATCH( 0,IF(ISBLANK([[Организация ]]),\"\",COUNTIF(INDIRECT(ADDRESS(1,COLUMN(),1)&\":\"&ADDRESS(ROW()-1,COLUMN(),1)),[[Организация ]])),0)),\"\")","v":""}]
["организация3","ФИО_3.4","телефон_3.4","почта_3.4",{"$f":"IFERROR(INDEX([[Организация ]],MATCH( 0,IF(ISBLANK([[Организация ]]),\"\",COUNTIF(INDIRECT(ADDRESS(1,COLUMN(),1)&\":\"&ADDRESS(ROW()-1,COLUMN(),1)),[[Организация ]])),0)),\"\")","v":""}]
["организация3","ФИО_3.5","телефон_3.5","почта_3.5",{"$f":"IFERROR(INDEX([[Организация ]],MATCH( 0,IF(ISBLANK([[Организация ]]),\"\",COUNTIF(INDIRECT(ADDRESS(1,COLUMN(),1)&\":\"&ADDRESS(ROW()-1,COLUMN(),1)),[[Организация ]])),0)),\"\")","v":""}]
["организация4","ФИО_4.1","телефон_4.1","почта_4.1",{"$f":"IFERROR(INDEX([[Организация ]],MATCH( 0,IF(ISBLANK([[Организация ]]),\"\",COUNTIF(INDIRECT(ADDRESS(1,COLUMN(),1)&\":\"&ADDRESS(ROW()-1,COLUMN(),1)),[[Организация ]])),0)),\"\")","v":""}]
["организация4","ФИО_4.2","телефон_4.2","почта_4.2",{"$f":"IFERROR(INDEX([[Организация ]],MATCH( 0,IF(ISBLANK([[Организация ]]),\"\",COUNTIF(INDIRECT(ADDRESS(1,COLUMN(),1)&\":\"&ADDRESS(ROW()-1,COLUMN(),1)),[[Организация ]])),0)),\"\")","v":""}]
["организация4","ФИО_4.3","телефон_4.3","почта_4.3",{"$f":"IFERROR(INDEX([[Организация ]],MATCH( 0,IF(ISBLANK([[Организация ]]),\"\",COUNTIF(INDIRECT(ADDRESS(1,COLUMN(),1)&\":\"&ADDRESS(ROW()-1,COLUMN(),1)),[[Организация ]])),0)),\"\")","v":""}]
["организация4","ФИО_4.4","телефон_4.4","почта_4.4",{"$f":"IFERROR(INDEX([[Организация ]],MATCH( 0,IF(ISBLANK([[Организация ]]),\"\",COUNTIF(INDIRECT(ADDRESS(1,COLUMN(),1)&\":\"&ADDRESS(ROW()-1,COLUMN(),1)),[[Организация ]])),0)),\"\")","v":""}]
["организация4","ФИО_4.5","телефон_4.5","почта_4.5",{"$f":"IFERROR(INDEX([[Организация ]],MATCH( 0,IF(ISBLANK([[Организация ]]),\"\",COUNTIF(INDIRECT(ADDRESS(1,COLUMN(),1)&\":\"&ADDRESS(ROW()-1,COLUMN(),1)),[[Организация ]])),0)),\"\")","v":""}]
["организация4","ФИО_4.6","телефон_4.6","почта_4.6",{"$f":"IFERROR(INDEX([[Организация ]],MATCH( 0,IF(ISBLANK([[Организация ]]),\"\",COUNTIF(INDIRECT(ADDRESS(1,COLUMN(),1)&\":\"&ADDRESS(ROW()-1,COLUMN(),1)),[[Организация ]])),0)),\"\")","v":""}]
["организация4","ФИО_4.7","телефон_4.7","почта_4.7",{"$f":"IFERROR(INDEX([[Организация ]],MATCH( 0,IF(ISBLANK([[Организация ]]),\"\",COUNTIF(INDIRECT(ADDRESS(1,COLUMN(),1)&\":\"&ADDRESS(ROW()-1,COLUMN(),1)),[[Организация ]])),0)),\"\")","v":""}]
["организация4","ФИО_4.8","телефон_4.8","почта_4.8",{"$f":"IFERROR(INDEX([[Организация ]],MATCH( 0,IF(ISBLANK([[Организация ]]),\"\",COUNTIF(INDIRECT(ADDRESS(1,COLUMN(),1)&\":\"&ADDRESS(ROW()-1,COLUMN(),1)),[[Организация ]])),0)),\"\")","v":""}]
["организация4","ФИО_4.9","телефон_4.9","почта_4.9",{"$f":"IFERROR(INDEX([[Организация ]],MATCH( 0,IF(ISBLANK([[Организация ]]),\"\",COUNTIF(INDIRECT(ADDRESS(1,COLUMN(),1)&\":\"&ADDRESS(ROW()-1,COLUMN(),1)),[[Организация ]])),0)),\"\")","v":""}]
["организация5","ФИО_5.1","телефон_5.1","почта_5.1",{"$f":"IFERROR(INDEX([[Организация ]],MATCH( 0,IF(ISBLANK([[Организация ]]),\"\",COUNTIF(INDIRECT(ADDRESS(1,COLUMN(),1)&\":\"&ADDRESS(ROW()-1,COLUMN(),1)),[[Организация ]])),0)),\"\")","v":""}]
["организация5","ФИО_5.2","телефон_5.2","почта_5.2",{"$f":"IFERROR(INDEX([[Организация ]],MATCH( 0,IF(ISBLANK([[Организация ]]),\"\",COUNTIF(INDIRECT(ADDRESS(1,COLUMN(),1)&\":\"&ADDRESS(ROW()-1,COLUMN(),1)),[[Организация ]])),0)),\"\")","v":""}]
["организация5","ФИО_5.3","телефон_5.3","почта_5.3",{"$f":"IFERROR(INDEX([[Организация ]],MATCH( 0,IF(ISBLANK([[Организация ]]),\"\",COUNTIF(INDIRECT(ADDRESS(1,COLUMN(),1)&\":\"&ADDRESS(ROW()-1,COLUMN(),1)),[[Организация ]])),0)),\"\")","v":""}]
["организация5","ФИО_5.4","телефон_5.4","почта_5.4",{"$f":"IFERROR(INDEX([[Организация ]],MATCH( 0,IF(ISBLANK([[Организация ]]),\"\",COUNTIF(INDIRECT(ADDRESS(1,COLUMN(),1)&\":\"&ADDRESS(ROW()-1,COLUMN(),1)),[[Организация ]])),0)),\"\")","v":""}]
["организация5","ФИО_5.5","телефон_5.5","почта_5.5",{"$f":"IFERROR(INDEX([[Организация ]],MATCH( 0,IF(ISBLANK([[Организация ]]),\"\",COUNTIF(INDIRECT(ADDRESS(1,COLUMN(),1)&\":\"&ADDRESS(ROW()-1,COLUMN(),1)),[[Организация ]])),0)),\"\")","v":""}]
["организация5","ФИО_5.6","телефон_5.6","почта_5.6",{"$f":"IFERROR(INDEX([[Организация ]],MATCH( 0,IF(ISBLANK([[Организация ]]),\"\",COUNTIF(INDIRECT(ADDRESS(1,COLUMN(),1)&\":\"&ADDRESS(ROW()-1,COLUMN(),1)),[[Организация ]])),0)),\"\")","v":""}]
["организация5","ФИО_5.7","телефон_5.7","почта_5.7",{"$f":"IFERROR(INDEX([[Организация ]],MATCH( 0,IF(ISBLANK([[Организация ]]),\"\",COUNTIF(INDIRECT(ADDRESS(1,COLUMN(),1)&\":\"&ADDRESS(ROW()-1,COLUMN(),1)),[[Организация ]])),0)),\"\")","v":""}]
["организация5","ФИО_5.8","телефон_5.8","почта_5.8",{"$f":"IFERROR(INDEX([[Организация ]],MATCH( 0,IF(ISBLANK([[Организация ]]),\"\",COUNTIF(INDIRECT(ADDRESS(1,COLUMN(),1)&\":\"&ADDRESS(ROW()-1,COLUMN(),1)),[[Организация ]])),0)),\"\")","v":""}]
["организация5","ФИО_5.9","телефон_5.9","почта_5.9",{"$f":"IFERROR(INDEX([[Организация ]],MATCH( 0,IF(ISBLANK([[Организация ]]),\"\",COUNTIF(INDIRECT(ADDRESS(1,COLUMN(),1)&\":\"&ADDRESS(ROW()-1,COLUMN(),1)),[[Организация ]])),0)),\"\")","v":""}]
["организация6","ФИО_6.1","телефон_6.1","почта_6.1",{"$f":"IFERROR(INDEX([[Организация ]],MATCH( 0,IF(ISBLANK([[Организация ]]),\"\",COUNTIF(INDIRECT(ADDRESS(1,COLUMN(),1)&\":\"&ADDRESS(ROW()-1,COLUMN(),1)),[[Организация ]])),0)),\"\")","v":""}]
["организация6","ФИО_6.2","телефон_6.2","почта_6.2",{"$f":"IFERROR(INDEX([[Организация ]],MATCH( 0,IF(ISBLANK([[Организация ]]),\"\",COUNTIF(INDIRECT(ADDRESS(1,COLUMN(),1)&\":\"&ADDRESS(ROW()-1,COLUMN(),1)),[[Организация ]])),0)),\"\")","v":""}]
["организация6","ФИО_6.3","телефон_6.3","почта_6.3",{"$f":"IFERROR(INDEX([[Организация ]],MATCH( 0,IF(ISBLANK([[Организация ]]),\"\",COUNTIF(INDIRECT(ADDRESS(1,COLUMN(),1)&\":\"&ADDRESS(ROW()-1,COLUMN(),1)),[[Организация ]])),0)),\"\")","v":""}]
["организация6","ФИО_6.4","телефон_6.4","почта_6.4",{"$f":"IFERROR(INDEX([[Организация ]],MATCH( 0,IF(ISBLANK([[Организация ]]),\"\",COUNTIF(INDIRECT(ADDRESS(1,COLUMN(),1)&\":\"&ADDRESS(ROW()-1,COLUMN(),1)),[[Организация ]])),0)),\"\")","v":""}]
["организация6","ФИО_6.5","телефон_6.5","почта_6.5",{"$f":"IFERROR(INDEX([[Организация ]],MATCH( 0,IF(ISBLANK([[Организация ]]),\"\",COUNTIF(INDIRECT(ADDRESS(1,COLUMN(),1)&\":\"&ADDRESS(ROW()-1,COLUMN(),1)),[[Организация ]])),0)),\"\")","v":""}]
["организация6","ФИО_6.6","телефон_6.6","почта_6.6",{"$f":"IFERROR(INDEX([[Организация ]],MATCH( 0,IF(ISBLANK([[Организация ]]),\"\",COUNTIF(INDIRECT(ADDRESS(1,COLUMN(),1)&\":\"&ADDRESS(ROW()-1,COLUMN(),1)),[[Организация ]])),0)),\"\")","v":""}]
["организация7","ФИО_7.1","телефон_7.1","почта_7.1",{"$f":"IFERROR(INDEX([[Организация ]],MATCH( 0,IF(ISBLANK([[Организация ]]),\"\",COUNTIF(INDIRECT(ADDRESS(1,COLUMN(),1)&\":\"&ADDRESS(ROW()-1,COLUMN(),1)),[[Организация ]])),0)),\"\")","v":""}]
["организация7","ФИО_7.2","телефон_7.2","почта_7.2",{"$f":"IFERROR(INDEX([[Организация ]],MATCH( 0,IF(ISBLANK([[Организация ]]),\"\",COUNTIF(INDIRECT(ADDRESS(1,COLUMN(),1)&\":\"&ADDRESS(ROW()-1,COLUMN(),1)),[[Организация ]])),0)),\"\")","v":""}]
["организация7","ФИО_7.3","телефон_7.3","почта_7.3",{"$f":"IFERROR(INDEX([[Организация ]],MATCH( 0,IF(ISBLANK([[Организация ]]),\"\",COUNTIF(INDIRECT(ADDRESS(1,COLUMN(),1)&\":\"&ADDRESS(ROW()-1,COLUMN(),1)),[[Организация ]])),0)),\"\")","v":""}]
["организация7","ФИО_7.4","телефон_7.4","почта_7.4",{"$f":"IFERROR(INDEX([[Организация ]],MATCH( 0,IF(ISBLANK([[Организация ]]),\"\",COUNTIF(INDIRECT(ADDRESS(1,COLUMN(),1)&\":\"&ADDRESS(ROW()-1,COLUMN(),1)),[[Организация ]])),0)),\"\")","v":""}]
["организация7","ФИО_7.5","телефон_7.5","почта_7.5",{"$f":"IFERROR(INDEX([[Организация ]],MATCH( 0,IF(ISBLANK([[Организация ]]),\"\",COUNTIF(INDIRECT(ADDRESS(1,COLUMN(),1)&\":\"&ADDRESS(ROW()-1,COLUMN(),1)),[[Организация ]])),0)),\"\")","v":""}]
["организация7","ФИО_7.6","телефон_7.6","почта_7.6",{"$f":"IFERROR(INDEX([[Организация ]],MATCH( 0,IF(ISBLANK([[Организация ]]),\"\",COUNTIF(INDIRECT(ADDRESS(1,COLUMN(),1)&\":\"&ADDRESS(ROW()-1,COLUMN(),1)),[[Организация ]])),0)),\"\")","v":""}]
["организация7","ФИО_7.7","телефон_7.7","почта_7.7",{"$f":"IFERROR(INDEX([[Организация ]],MATCH( 0,IF(ISBLANK([[Организация ]]),\"\",COUNTIF(INDIRECT(ADDRESS(1,COLUMN(),1)&\":\"&ADDRESS(ROW()-1,COLUMN(),1)),[[Организация ]])),0)),\"\")","v":""}]
["организация7","ФИО_7.8","телефон_7.8","почта_7.8",{"$f":"IFERROR(INDEX([[Организация ]],MATCH( 0,IF(ISBLANK([[Организация ]]),\"\",COUNTIF(INDIRECT(ADDRESS(1,COLUMN(),1)&\":\"&ADDRESS(ROW()-1,COLUMN(),1)),[[Организация ]])),0)),\"\")","v":""}]
["организация8","ФИО_8.1","телефон_8.1","почта_8.1",{"$f":"IFERROR(INDEX([[Организация ]],MATCH( 0,IF(ISBLANK([[Организация ]]),\"\",COUNTIF(INDIRECT(ADDRESS(1,COLUMN(),1)&\":\"&ADDRESS(ROW()-1,COLUMN(),1)),[[Организация ]])),0)),\"\")","v":""}]
["организация8","ФИО_8.2","телефон_8.2","почта_8.2",{"$f":"IFERROR(INDEX([[Организация ]],MATCH( 0,IF(ISBLANK([[Организация ]]),\"\",COUNTIF(INDIRECT(ADDRESS(1,COLUMN(),1)&\":\"&ADDRESS(ROW()-1,COLUMN(),1)),[[Организация ]])),0)),\"\")","v":""}]
["организация8","ФИО_8.3","телефон_8.3","почта_8.3",{"$f":"IFERROR(INDEX([[Организация ]],MATCH( 0,IF(ISBLANK([[Организация ]]),\"\",COUNTIF(INDIRECT(ADDRESS(1,COLUMN(),1)&\":\"&ADDRESS(ROW()-1,COLUMN(),1)),[[Организация ]])),0)),\"\")","v":""}]
["организация9","ФИО_9.1","телефон_9.1","почта_9.1",{"$f":"IFERROR(INDEX([[Организация ]],MATCH( 0,IF(ISBLANK([[Организация ]]),\"\",COUNTIF(INDIRECT(ADDRESS(1,COLUMN(),1)&\":\"&ADDRESS(ROW()-1,COLUMN(),1)),[[Организация ]])),0)),\"\")","v":""}]
["организация9","ФИО_9.2","телефон_9.2","почта_9.2",{"$f":"IFERROR(INDEX([[Организация ]],MATCH( 0,IF(ISBLANK([[Организация ]]),\"\",COUNTIF(INDIRECT(ADDRESS(1,COLUMN(),1)&\":\"&ADDRESS(ROW()-1,COLUMN(),1)),[[Организация ]])),0)),\"\")","v":""}]
["организация9","ФИО_9.3","телефон_9.3","почта_9.3",{"$f":"IFERROR(INDEX([[Организация ]],MATCH( 0,IF(ISBLANK([[Организация ]]),\"\",COUNTIF(INDIRECT(ADDRESS(1,COLUMN(),1)&\":\"&ADDRESS(ROW()-1,COLUMN(),1)),[[Организация ]])),0)),\"\")","v":""}]
["организация9","ФИО_9.4","телефон_9.4","почта_9.4",{"$f":"IFERROR(INDEX([[Организация ]],MATCH( 0,IF(ISBLANK([[Организация ]]),\"\",COUNTIF(INDIRECT(ADDRESS(1,COLUMN(),1)&\":\"&ADDRESS(ROW()-1,COLUMN(),1)),[[Организация ]])),0)),\"\")","v":""}]

{"sheet":"Лист2","index":1,"n_rows":5,"n_cols":4,"rows_kept":5,"cut":false,"hidden":false,"merged":[]}
["Организация ","ФИО","Телефон","почта"]
["организация2","ФИО_2.3",{"$f":"Тел","v":"телефон_2.3"},{"$f":"Почта","v":"почта_2.3"}]
["организация1","ФИО_1.4",{"$f":"Тел","v":"телефон_1.4"},{"$f":"Почта","v":"почта_1.4"}]
["организация6","ФИО_6.1",{"$f":"Тел","v":"телефон_6.1"},{"$f":"Почта","v":"почта_6.1"}]
["организация7","ФИО_7.7",{"$f":"Тел","v":"телефон_7.7"},{"$f":"Почта","v":"почта_7.7"}]